Workbook

Sheet Flexiflume
E2: Free Call: 1800 115 440
E3: land line: 03 5339 3103
E4: International: +61 3 5339 3103
E5: info@bartlett.net.au
E6: www.bartlett.net.au
A7: Flexiflume Friction Loss Calculator
F8: Converted Inputs
B9: Calculation Inputs | F9: Flow | G9: Distance | H9: Stat.Hd.
A10: Static Head:- Difference in Altitude between | B10: Flow | C10: Distance | D10: Static | F10: US gpm | G10: feet | H10: feet
A11: Lowest & Highest points of the line | B11: in | C11: in | D11: Head | F11: =B13/3.7854*60 -> 0 | G11: =C13*3.281 -> 0 | H11: =D13*3.281 -> 0
B12: L/Sec | C12: Metres | D12: Metres | F12: UK gmp | G12: yards | H12: psi
B13: 0 | C13: 0 | D13: 0 | F13: =B13/4.5461*60 -> 0 | G13: =G11/3 -> 0 | H13: =D13*1.42094 -> 0
F14: CuSec | G14: chains | H14: Kpa
A15: Approximate number of outlets that could run at 2l/s each | B15: =B13/2 -> 0 | F15: =F11*0.00222801 -> 0 | G15: =C13/20.11684 -> 0 | H15: =D13*9.806 -> 0
A16: Note: You need between 1.5m and 0.5m head | F16: ML/day
A17: at each outlet for proper operation. | F17: =(+B13*60*60*24)/1000000 -> 0
A19: Calculation Results
A20: Fluming Nominal Diameter (inches) | B20: 3" | C20: 5" | D20: 7" | E20: 9" | F20: 11" | G20: 13" | H20: 16"
A21: Fluming Actual Diameter (inches) | B21: 3.386 | C21: 5.275 | D21: 7.2 | E21: 9.1 | F21: 11.02 | G21: 12.9 | H21: 16.73
A22: Fluming Actual Diameter (millimetres) | B22: 86 | C22: 134 | D22: 183 | E22: 231 | F22: 280 | G22: 328 | H22: 425
A23: Friction Loss per 100m (metres head) | B23: =((((3350000)*$B$13))/((B$22^2.63)*149))^1.852 -> 0 | C23: 0 | D23: 0 | E23: 0 | F23: 0 | G23: 0 | H23: 0
A24: Friction Loss per 100 feet (Feet head ) | B24: =B23 -> 0 | C24: =C23 -> 0 | D24: 0 | E24: 0 | F24: 0 | G24: 0 | H24: 0
A25: Friction Loss per 100 feet (psi ) | B25: =B23*1.42094/3.281 -> 0 | C25: =C23*1.42094/3.281 -> 0 | D25: 0 | E25: 0 | F25: 0 | G25: 0 | H25: 0
A26: Total Friction Loss + Static Head (metres head) | B26: =((+$C$13*0.01)*B$23)+$D$13 -> 0 | C26: =((+$C$13*0.01)*C23)+$D$13 -> 0 | D26: 0 | E26: 0 | F26: 0 | G26: 0 | H26: 0
A27: Total Friction Loss + Static Head (feet head) | B27: =(((+$C$13*0.01)*B$23)+$D$13)*3.281 -> 0 | C27: =(((+$C$13*0.01)*C$23)+$D$13)*3.281 -> 0 | D27: 0 | E27: 0 | F27: 0 | G27: 0 | H27: 0
A28: Total Friction Loss + Static Head (psi) | B28: =(((+$C$13*0.01)*B$23)+$D$13)*1.42094 -> 0 | C28: =(((+$C$13*0.01)*C$23)+$D$13)*1.42094 -> 0 | D28: 0 | E28: 0 | F28: 0 | G28: 0 | H28: 0
A29: Maximum Working Pressure (metres head) | B29: 11 | C29: 8 | D29: 6 | E29: 4.5 | F29: 3.5 | G29: 2.3 | H29: 1.4
A30: Maximum Working Pressure (feet head) | B30: =B29*3.281 -> 36.091 | C30: =C29*3.281 -> 26.248 | D30: 19.686 | E30: 14.7645 | F30: 11.4835 | G30: 7.5463 | H30: 4.5934
A31: Maximum Working Pressure (psi) | B31: =B29*1.42094 -> 15.63034 | C31: =C29*1.42094 -> 11.36752 | D31: 8.52564 | E31: 6.39423 | F31: 4.97329 | G31: 3.268162 | H31: 1.989316
A32: Allowable Fluming Size? | B32: =IF(+B26<=B29," YES"," NO") -> YES | C32: YES | D32: YES | E32: YES | F32: YES | G32: YES | H32: YES
A34: Note: when using outlets the maximum head pressure regardless of Flexiflume diameter being used is 1.4m

Sheet Pumpline
E2: Free Call: 1800 115 440
E3: land line: 03 5339 3103
E4: International: +61 3 5339 3103
E5: info@bartlett.net.au
E6: www.bartlett.net.au
A7: Pumpline Friction Loss Calculator
F8: Converted Inputs
B9: Calculation Inputs | F9: Flow | G9: Distance | H9: Stat.Hd.
A10: Static Head:- Difference in Altitude between | B10: Flow | C10: Distance | D10: Static | F10: US gpm | G10: feet | H10: feet
A11: Lowest & Highest points of the line | B11: in | C11: in | D11: Head | F11: =B13/3.7854*60 -> 0 | G11: =C13*3.281 -> 0 | H11: =D13*3.281 -> 0
B12: L/Sec | C12: Metres | D12: Metres | F12: UK gmp | G12: yards | H12: psi
B13: 0 | C13: 0 | D13: 0 | F13: =B13/4.5461*60 -> 0 | G13: =G11/3 -> 0 | H13: =D13*1.42094 -> 0
F14: CuSec | G14: chains | H14: Kpa
F15: =F11*0.00222801 -> 0 | G15: =C13/20.11684 -> 0 | H15: =D13*9.806 -> 0
F16: ML/day
F17: =(+B13*60*60*24)/1000000 -> 0
A19: Calculation Results
A20: Fluming Nominal Diameter (inches) | B20: 3" | C20: 5" | D20: 7" | E20: 9" | F20: 11" | G20: 13" | H20: 16" | I20: 19" | J20: 24" | K20: 30"
A21: Fluming Actual Diameter (inches) | B21: 3.386 | C21: 5.275 | D21: 7.2 | E21: 9.1 | F21: 11.02 | G21: 12.9 | H21: 16.73 | I21: =I22/25.4 -> 19.72440945 | J21: =J22/25.4 -> 25.03937008 | K21: =K22/25.4 -> 30.62992126
A22: Fluming Actual Diameter (millimetres) | B22: 86 | C22: 134 | D22: 183 | E22: 231 | F22: 280 | G22: 328 | H22: 425 | I22: 501 | J22: 636 | K22: 778
A23: Friction Loss per 100m (metres head) | B23: =((((3350000)*$B$13))/((B$22^2.63)*149))^1.852 -> 0 | C23: 0 | D23: 0 | E23: 0 | F23: 0 | G23: 0 | H23: 0 | I23: 0 | J23: 0 | K23: 0
A24: Friction Loss per 100 feet (Feet head ) | B24: =B23 -> 0 | C24: 0 | D24: 0 | E24: 0 | F24: 0 | G24: 0 | H24: 0 | I24: =I23 -> 0 | J24: =J23 -> 0 | K24: =K23 -> 0
A25: Friction Loss per 100 feet (psi ) | B25: =B23*1.42094/3.281 -> 0 | C25: 0 | D25: 0 | E25: 0 | F25: 0 | G25: 0 | H25: 0 | I25: =I23*1.42094/3.281 -> 0 | J25: =J23*1.42094/3.281 -> 0 | K25: =K23*1.42094/3.281 -> 0
A26: Total Friction Loss + Static Head (metres head) | B26: =((+$C$13*0.01)*B$23)+$D$13 -> 0 | C26: =((+$C$13*0.01)*C23)+$D$13 -> 0 | D26: 0 | E26: 0 | F26: 0 | G26: 0 | H26: 0 | I26: =((+$C$13*0.01)*I23)+$D$13 -> 0 | J26: =((+$C$13*0.01)*J23)+$D$13 -> 0 | K26: =((+$C$13*0.01)*K23)+$D$13 -> 0
A27: Total Friction Loss + Static Head (feet head) | B27: =(((+$C$13*0.01)*B$23)+$D$13)*3.281 -> 0 | C27: 0 | D27: 0 | E27: 0 | F27: 0 | G27: 0 | H27: 0 | I27: 0 | J27: 0 | K27: 0
A28: Total Friction Loss + Static Head (psi) | B28: =(((+$C$13*0.01)*B$23)+$D$13)*1.42094 -> 0 | C28: 0 | D28: 0 | E28: 0 | F28: 0 | G28: 0 | H28: 0 | I28: 0 | J28: 0 | K28: 0
A29: Maximum Working Pressure (metres head) | B29: 33 | C29: 21 | D29: 15.5 | E29: 12 | F29: 10 | G29: 8.5 | H29: 6.5 | I29: 5.5 | J29: 4.5 | K29: 3.5
A30: Maximum Working Pressure (feet head) | B30: =B29*3.281 -> 108.273 | C30: 68.901 | D30: 50.8555 | E30: 39.372 | F30: 32.81 | G30: 27.8885 | H30: 21.3265 | I30: =I29*3.281 -> 18.0455 | J30: =J29*3.281 -> 14.7645 | K30: =K29*3.281 -> 11.4835
A31: Maximum Working Pressure (psi) | B31: =B29*1.42094 -> 46.89102 | C31: 29.83974 | D31: 22.02457 | E31: 17.05128 | F31: 14.2094 | G31: 12.07799 | H31: 9.23611 | I31: =I29*1.42094 -> 7.81517 | J31: =J29*1.42094 -> 6.39423 | K31: =K29*1.42094 -> 4.97329
A32: Allowable Fluming Size? | B32: =IF(+B26<=B29," YES"," NO") -> YES | C32: YES | D32: YES | E32: YES | F32: YES | G32: YES | H32: YES | I32: YES | J32: YES | K32: YES
